[Event "*** Titled Tuesday Blitz"]
[Site "Chess.com"]
[Date "2020.04.21"]
[Round "3"]
[White "IMAghasiyevKamal"]
[Black "KuzubovYuriy"]
[Result "1/2-1/2"]
[WhiteElo "2538"]
[BlackElo "2756"]
[TimeControl "180+1"]
[EndTime "10:29:32 PDT"]
[Termination "Game drawn by repetition"]

1. d4 {[%clk 0:03:00.9]} 1... Nf6 {[%clk 0:02:59.7]} 2. c4 {[%clk 0:02:59]} 2...
e6 {[%clk 0:03:00]} 3. Nf3 {[%clk 0:02:55.7]} 3... d5 {[%clk 0:02:59.4]} 4. g3
{[%clk 0:02:54.3]} 4... Be7 {[%clk 0:02:57]} 5. Bg2 {[%clk 0:02:54.1]} 5... O-O
{[%clk 0:02:57.6]} 6. O-O {[%clk 0:02:53.6]} 6... dxc4 {[%clk 0:02:58.2]} 7. Qc2
{[%clk 0:02:50.4]} 7... b5 {[%clk 0:02:52.8]} 8. a4 {[%clk 0:02:32]} 8... b4
{[%clk 0:02:52.6]} 9. Qxc4 {[%clk 0:02:30.6]} 9... Ba6 {[%clk 0:02:29.7]} 10.
Qc2 {[%clk 0:02:29.2]} 10... c5 {[%clk 0:01:54.8]} 11. dxc5 {[%clk 0:02:21]}
11... Nbd7 {[%clk 0:01:51.9]} 12. c6 {[%clk 0:02:05.6]} 12... Rc8 {[%clk
0:01:46.4]} 13. Bf4 {[%clk 0:02:05.1]} 13... Nd5 {[%clk 0:01:41.4]} 14. Rd1
{[%clk 0:01:28.8]} 14... b3 {[%clk 0:00:50.6]} 15. Qxb3 {[%clk 0:01:17.8]} 15...
Nc5 {[%clk 0:00:50.5]} 16. Qc2 {[%clk 0:01:11.4]} 16... Nb4 {[%clk 0:00:43.2]}
17. Qc1 {[%clk 0:01:05.4]} 17... Qb6 {[%clk 0:00:36.7]} 18. Nd4 {[%clk
0:00:56.8]} 18... Nxc6 {[%clk 0:00:22.6]} 19. Nxc6 {[%clk 0:00:54.5]} 19... Rxc6
{[%clk 0:00:22.2]} 20. a5 {[%clk 0:00:55.1]} 20... Qb7 {[%clk 0:00:16.3]} 21. b4
{[%clk 0:00:51.5]} 21... Bxe2 {[%clk 0:00:14.4]} 22. Re1 {[%clk 0:00:46.4]}
22... Qxb4 {[%clk 0:00:14.2]} 23. Rxe2 {[%clk 0:00:41.5]} 23... Rcc8 {[%clk
0:00:11.6]} 24. Qb2 {[%clk 0:00:33.2]} 24... Nd3 {[%clk 0:00:10.2]} 25. Qxb4
{[%clk 0:00:32.2]} 25... Bxb4 {[%clk 0:00:08.8]} 26. Nd2 {[%clk 0:00:29.5]}
26... Nxf4 {[%clk 0:00:08.2]} 27. gxf4 {[%clk 0:00:29.5]} 27... Rc2 {[%clk
0:00:08.9]} 28. Rd1 {[%clk 0:00:28.3]} 28... Rd8 {[%clk 0:00:09.1]} 29. Nf1
{[%clk 0:00:27.9]} 29... Rxd1 {[%clk 0:00:08.1]} 30. Rxc2 {[%clk 0:00:27.5]}
30... Bxa5 {[%clk 0:00:08.2]} 31. Rc8+ {[%clk 0:00:23.7]} 31... Rd8 {[%clk
0:00:08.1]} 32. Rxd8+ {[%clk 0:00:22.6]} 32... Bxd8 {[%clk 0:00:09]} 33. Bb7
{[%clk 0:00:20.8]} 33... Bc7 {[%clk 0:00:07.6]} 34. Kg2 {[%clk 0:00:21.7]} 34...
Bxf4 {[%clk 0:00:07.3]} 35. h3 {[%clk 0:00:22.1]} 35... g6 {[%clk 0:00:07.3]}
36. Kf3 {[%clk 0:00:22.3]} 36... Bc7 {[%clk 0:00:07.6]} 37. Ne3 {[%clk
0:00:22.5]} 37... Kg7 {[%clk 0:00:08.2]} 38. Nc4 {[%clk 0:00:22.7]} 38... f5
{[%clk 0:00:08.3]} 39. Bc6 {[%clk 0:00:23.4]} 39... Kf6 {[%clk 0:00:08.6]} 40.
Be8 {[%clk 0:00:23.1]} 40... e5 {[%clk 0:00:08.9]} 41. Bc6 {[%clk 0:00:23.2]}
41... e4+ {[%clk 0:00:09]} 42. Ke2 {[%clk 0:00:20.5]} 42... h5 {[%clk
0:00:08.7]} 43. Bd5 {[%clk 0:00:20.6]} 43... g5 {[%clk 0:00:08.8]} 44. Ne3
{[%clk 0:00:19.1]} 44... Bb6 {[%clk 0:00:07.7]} 45. Bb7 {[%clk 0:00:17.5]} 45...
Bxe3 {[%clk 0:00:07]} 46. fxe3 {[%clk 0:00:17.1]} 46... a5 {[%clk 0:00:06.8]}
47. Bc6 {[%clk 0:00:16.7]} 47... Ke5 {[%clk 0:00:06.9]} 48. Ba4 {[%clk
0:00:16.6]} 48... h4 {[%clk 0:00:06.8]} 49. Bd7 {[%clk 0:00:16.1]} 49... f4
{[%clk 0:00:06.8]} 50. Ba4 {[%clk 0:00:15.9]} 50... f3+ {[%clk 0:00:07.1]} 51.
Kf2 {[%clk 0:00:16.2]} 51... Kd5 {[%clk 0:00:07.1]} 52. Ke1 {[%clk 0:00:15.8]}
52... Kc4 {[%clk 0:00:05.7]} 53. Kf2 {[%clk 0:00:16.3]} 53... Kc3 {[%clk
0:00:04.6]} 54. Bc6 {[%clk 0:00:16.2]} 54... Kd3 {[%clk 0:00:04.4]} 55. Bb5+
{[%clk 0:00:16.6]} 55... Kc3 {[%clk 0:00:04.7]} 56. Bc6 {[%clk 0:00:17.5]} 56...
Kd3 {[%clk 0:00:05.2]} 57. Bb5+ {[%clk 0:00:17.6]} 57... Kc3 {[%clk 0:00:05.6]}
58. Bc6 {[%clk 0:00:17.8]} 1/2-1/2

[Event "*** Titled Tuesday Blitz"]
[Site "Chess.com"]
[Date "2020.04.21"]
[Round "3"]
[White "EfM13"]
[Black "Vuk2000"]
[Result "0-1"]
[WhiteElo "2372"]
[BlackElo "2604"]
[TimeControl "180+1"]
[EndTime "10:29:32 PDT"]
[Termination "Vuk2000 won on time"]

1. e4 {[%clk 0:03:00.6]} 1... e6 {[%clk 0:03:00.4]} 2. d4 {[%clk 0:02:59.8]}
2... d5 {[%clk 0:03:00.9]} 3. Nd2 {[%clk 0:02:58.7]} 3... Be7 {[%clk 0:02:59.9]}
4. Bd3 {[%clk 0:02:53.1]} 4... c5 {[%clk 0:02:58]} 5. c3 {[%clk 0:02:51.9]} 5...
Nf6 {[%clk 0:02:54.8]} 6. e5 {[%clk 0:02:51.2]} 6... Nfd7 {[%clk 0:02:54.6]} 7.
Ngf3 {[%clk 0:02:48]} 7... b6 {[%clk 0:02:53.8]} 8. Qe2 {[%clk 0:02:46.9]} 8...
a5 {[%clk 0:02:53.7]} 9. O-O {[%clk 0:02:38.1]} 9... Ba6 {[%clk 0:02:53.8]} 10.
c4 {[%clk 0:02:30.8]} 10... Nc6 {[%clk 0:02:34.6]} 11. cxd5 {[%clk 0:01:45.6]}
11... Bxd3 {[%clk 0:02:34]} 12. Qxd3 {[%clk 0:01:45.5]} 12... Nb4 {[%clk
0:02:34.3]} 13. Qe2 {[%clk 0:01:41.4]} 13... Nxd5 {[%clk 0:02:31.3]} 14. Nc4
{[%clk 0:01:28.1]} 14... O-O {[%clk 0:02:26.4]} 15. Rd1 {[%clk 0:01:24.4]} 15...
Qc7 {[%clk 0:02:11.3]} 16. Be3 {[%clk 0:01:06.5]} 16... b5 {[%clk 0:01:53.7]}
17. Na3 {[%clk 0:01:05.7]} 17... b4 {[%clk 0:01:48.6]} 18. Nc4 {[%clk
0:00:58.9]} 18... Nxe3 {[%clk 0:01:32.1]} 19. fxe3 {[%clk 0:00:56.9]} 19... cxd4
{[%clk 0:01:32.3]} 20. exd4 {[%clk 0:00:56.2]} 20... Nb6 {[%clk 0:01:31.9]} 21.
Rac1 {[%clk 0:00:53.1]} 21... Rfc8 {[%clk 0:01:07.6]} 22. Kh1 {[%clk 0:00:51.7]}
22... a4 {[%clk 0:00:51.1]} 23. b3 {[%clk 0:00:45.8]} 23... Nd5 {[%clk
0:00:46.9]} 24. Qd2 {[%clk 0:00:39.5]} 24... Nc3 {[%clk 0:00:42.6]} 25. Rf1
{[%clk 0:00:38.8]} 25... axb3 {[%clk 0:00:42.7]} 26. axb3 {[%clk 0:00:37.7]}
26... Qc6 {[%clk 0:00:37.5]} 27. Ng5 {[%clk 0:00:34.9]} 27... Ra2 {[%clk
0:00:34]} 28. d5 {[%clk 0:00:28.1]} 28... Rxd2 {[%clk 0:00:12.7]} 29. dxc6
{[%clk 0:00:27.1]} 29... Bxg5 {[%clk 0:00:12.9]} 30. Nxd2 {[%clk 0:00:27.1]}
30... Bxd2 {[%clk 0:00:13]} 31. Ra1 {[%clk 0:00:27.1]} 31... g6 {[%clk
0:00:11.4]} 32. Rf2 {[%clk 0:00:26.9]} 32... Be3 {[%clk 0:00:10.3]} 33. Rf3
{[%clk 0:00:26.3]} 33... Bd4 {[%clk 0:00:09.7]} 34. Raf1 {[%clk 0:00:26.1]}
34... Rxc6 {[%clk 0:00:08.6]} 35. Rxf7 {[%clk 0:00:26]} 35... Bxe5 {[%clk
0:00:09]} 36. Rf8+ {[%clk 0:00:24.2]} 36... Kg7 {[%clk 0:00:09.1]} 37. R8f7+
{[%clk 0:00:23.4]} 37... Kg8 {[%clk 0:00:08.4]} 38. Rf8+ {[%clk 0:00:23.5]}
38... Kg7 {[%clk 0:00:09]} 39. R8f7+ {[%clk 0:00:23.6]} 39... Kh6 {[%clk
0:00:09.6]} 40. R1f3 {[%clk 0:00:22.6]} 40... Nd5 {[%clk 0:00:09.2]} 41. h4
{[%clk 0:00:16.3]} 41... Rc3 {[%clk 0:00:09.2]} 42. Rf1 {[%clk 0:00:14]} 42...
Rxb3 {[%clk 0:00:07.4]} 43. Re1 {[%clk 0:00:12.6]} 43... Re3 {[%clk 0:00:07.6]}
44. Rg1 {[%clk 0:00:07.3]} 44... Bg3 {[%clk 0:00:06]} 45. Ra1 {[%clk 0:00:04.4]}
45... b3 {[%clk 0:00:04.1]} 46. Kg1 {[%clk 0:00:03]} 46... b2 {[%clk 0:00:04.4]}
47. Rb1 {[%clk 0:00:03.1]} 47... Re2 {[%clk 0:00:04.9]} 48. Rbf1 {[%clk
0:00:02.4]} 48... Re1 {[%clk 0:00:04.2]} 49. Rxe1 {[%clk 0:00:01.6]} 49... Bxe1
{[%clk 0:00:05.1]} 50. Rb7 {[%clk 0:00:01.7]} 50... Bc3 {[%clk 0:00:04.8]} 0-1

[Event "*** Titled Tuesday Blitz"]
[Site "Chess.com"]
[Date "2020.04.21"]
[Round "3"]
[White "czasnaszachy"]
[Black "josephymwale33"]
[Result "0-1"]
[WhiteElo "2341"]
[BlackElo "2297"]
[TimeControl "180+1"]
[EndTime "10:29:32 PDT"]
[Termination "josephymwale33 won on time"]

1. d4 {[%clk 0:03:00.9]} 1... Nf6 {[%clk 0:02:58.6]} 2. c4 {[%clk 0:03:00.5]}
2... e6 {[%clk 0:02:58.9]} 3. Nc3 {[%clk 0:02:59.9]} 3... Bb4 {[%clk 0:02:59.2]}
4. e3 {[%clk 0:03:00.6]} 4... c5 {[%clk 0:02:59]} 5. Ne2 {[%clk 0:03:00.4]} 5...
d5 {[%clk 0:02:53.4]} 6. a3 {[%clk 0:02:59.5]} 6... Bxc3+ {[%clk 0:02:52.8]} 7.
Nxc3 {[%clk 0:02:59.3]} 7... dxc4 {[%clk 0:02:53.7]} 8. Bxc4 {[%clk 0:02:59.1]}
8... cxd4 {[%clk 0:02:54.6]} 9. exd4 {[%clk 0:02:57.5]} 9... O-O {[%clk
0:02:55.5]} 10. O-O {[%clk 0:02:56.8]} 10... Nc6 {[%clk 0:02:53.1]} 11. d5
{[%clk 0:02:45.5]} 11... exd5 {[%clk 0:02:48.7]} 12. Nxd5 {[%clk 0:02:45.2]}
12... Nxd5 {[%clk 0:02:49.6]} 13. Qxd5 {[%clk 0:02:40.7]} 13... Be6 {[%clk
0:02:36.2]} 14. Qxd8 {[%clk 0:02:37.9]} 14... Nxd8 {[%clk 0:02:37.1]} 15. Bd3
{[%clk 0:02:11.6]} 15... Nc6 {[%clk 0:02:34.8]} 16. Be4 {[%clk 0:02:09.8]} 16...
Rfd8 {[%clk 0:02:26.5]} 17. Be3 {[%clk 0:02:07.9]} 17... Bd5 {[%clk 0:02:19.5]}
18. Bxd5 {[%clk 0:01:43.2]} 18... Rxd5 {[%clk 0:02:18.4]} 19. Rfd1 {[%clk
0:01:43.8]} 19... Rad8 {[%clk 0:02:17.5]} 20. Rxd5 {[%clk 0:01:44.3]} 20... Rxd5
{[%clk 0:02:18.4]} 21. Kf1 {[%clk 0:01:44.1]} 21... Kf8 {[%clk 0:02:17]} 22. Ke2
{[%clk 0:01:44.2]} 22... Ke7 {[%clk 0:02:16.9]} 23. Rc1 {[%clk 0:01:43.3]} 23...
Ke6 {[%clk 0:02:15.3]} 24. Rc3 {[%clk 0:01:17.7]} 24... a5 {[%clk 0:02:14.4]}
25. Rb3 {[%clk 0:01:15.4]} 25... b5 {[%clk 0:02:11.1]} 26. Rc3 {[%clk
0:01:12.5]} 26... Kd7 {[%clk 0:02:05.5]} 27. Rc2 {[%clk 0:00:46.2]} 27... a4
{[%clk 0:01:47.7]} 28. Rc3 {[%clk 0:00:42.3]} 28... Na5 {[%clk 0:01:45.4]} 29.
Rd3 {[%clk 0:00:32.4]} 29... Ke6 {[%clk 0:01:39.9]} 30. Rc3 {[%clk 0:00:29.5]}
30... Nc4 {[%clk 0:01:38.9]} 31. Rc2 {[%clk 0:00:28.3]} 31... f5 {[%clk
0:01:28.9]} 32. g3 {[%clk 0:00:27.5]} 32... g6 {[%clk 0:01:26.9]} 33. h4 {[%clk
0:00:26.7]} 33... Rd7 {[%clk 0:01:18.8]} 34. Bc1 {[%clk 0:00:25.6]} 34... Kd5
{[%clk 0:01:06.3]} 35. Rc3 {[%clk 0:00:21]} 35... Ke6 {[%clk 0:01:03.7]} 36. Rd3
{[%clk 0:00:18.2]} 36... Rxd3 {[%clk 0:00:59.5]} 37. Kxd3 {[%clk 0:00:18.3]}
37... Kd5 {[%clk 0:01:00.4]} 38. Kc3 {[%clk 0:00:18]} 38... Nd6 {[%clk
0:00:36.9]} 39. f3 {[%clk 0:00:14.8]} 39... Nc4 {[%clk 0:00:30]} 40. Kb4 {[%clk
0:00:13.1]} 40... Kc6 {[%clk 0:00:29.1]} 41. b3 {[%clk 0:00:12.8]} 41... axb3
{[%clk 0:00:27.5]} 42. Kxb3 {[%clk 0:00:12.9]} 42... Ne5 {[%clk 0:00:28.4]} 43.
f4 {[%clk 0:00:10.7]} 43... Nd3 {[%clk 0:00:27.5]} 44. Be3 {[%clk 0:00:08]}
44... Kd5 {[%clk 0:00:24.3]} 45. Kc3 {[%clk 0:00:06.7]} 45... Ne1 {[%clk
0:00:24]} 46. Bf2 {[%clk 0:00:05.9]} 46... Nf3 {[%clk 0:00:22.6]} 47. Kb4 {[%clk
0:00:05.6]} 47... Nd2 {[%clk 0:00:20.1]} 48. Be1 {[%clk 0:00:03.7]} 48... Ne4
{[%clk 0:00:21]} 49. a4 {[%clk 0:00:03.5]} 49... bxa4 {[%clk 0:00:19.6]} 50.
Kxa4 {[%clk 0:00:03.9]} 50... Kd4 {[%clk 0:00:20.5]} 51. Kb3 {[%clk 0:00:04.1]}
51... Ke3 {[%clk 0:00:21.4]} 52. Kc2 {[%clk 0:00:04.2]} 52... Kf3 {[%clk
0:00:22.3]} 53. Kd3 {[%clk 0:00:03.5]} 53... Nxg3 {[%clk 0:00:22.3]} 54. Bd2
{[%clk 0:00:03.5]} 54... Ne2 {[%clk 0:00:21.9]} 55. Ba5 {[%clk 0:00:01.9]} 55...
Nxf4+ {[%clk 0:00:22.8]} 0-1

[Event "*** Titled Tuesday Blitz"]
[Site "Chess.com"]
[Date "2020.04.21"]
[Round "3"]
[White "Matibar"]
[Black "TregubovP"]
[Result "1-0"]
[WhiteElo "2781"]
[BlackElo "2575"]
[TimeControl "180+1"]
[EndTime "10:29:33 PDT"]
[Termination "Matibar won on time"]

1. Nf3 {[%clk 0:03:00.9]} 1... c5 {[%clk 0:02:59.3]} 2. b3 {[%clk 0:02:58.3]}
2... Nc6 {[%clk 0:02:58.7]} 3. Bb2 {[%clk 0:02:58.4]} 3... d6 {[%clk 0:02:53]}
4. g3 {[%clk 0:02:56.2]} 4... e5 {[%clk 0:02:52.3]} 5. Bg2 {[%clk 0:02:56.8]}
5... Nf6 {[%clk 0:02:50.9]} 6. O-O {[%clk 0:02:56.9]} 6... Be7 {[%clk
0:02:50.9]} 7. e3 {[%clk 0:02:56.9]} 7... O-O {[%clk 0:02:50.8]} 8. d4 {[%clk
0:02:55.9]} 8... cxd4 {[%clk 0:02:48.5]} 9. exd4 {[%clk 0:02:55.7]} 9... e4
{[%clk 0:02:48.7]} 10. Nfd2 {[%clk 0:02:55.3]} 10... d5 {[%clk 0:02:48.5]} 11.
h3 {[%clk 0:02:54.8]} 11... Bf5 {[%clk 0:02:38.3]} 12. Re1 {[%clk 0:02:52.3]}
12... h5 {[%clk 0:02:34.4]} 13. Nf1 {[%clk 0:02:51.7]} 13... Re8 {[%clk
0:02:28.6]} 14. Nbd2 {[%clk 0:02:48.7]} 14... Qb6 {[%clk 0:02:24.9]} 15. c3
{[%clk 0:02:48.3]} 15... Rad8 {[%clk 0:02:23.9]} 16. Ne3 {[%clk 0:02:45.7]}
16... Bg6 {[%clk 0:02:23.7]} 17. a4 {[%clk 0:02:20.3]} 17... a5 {[%clk
0:02:23.4]} 18. Qe2 {[%clk 0:02:19.1]} 18... Bf8 {[%clk 0:02:13.3]} 19. Qb5
{[%clk 0:02:17.4]} 19... Qc7 {[%clk 0:02:11.2]} 20. Rac1 {[%clk 0:02:16.6]}
20... Qd7 {[%clk 0:01:57.6]} 21. Ndf1 {[%clk 0:02:07.4]} 21... Nh7 {[%clk
0:01:55.5]} 22. h4 {[%clk 0:02:02.7]} 22... Nf6 {[%clk 0:01:55.2]} 23. Red1
{[%clk 0:02:01.5]} 23... Ra8 {[%clk 0:01:17.3]} 24. c4 {[%clk 0:01:54.3]} 24...
dxc4 {[%clk 0:01:11.1]} 25. bxc4 {[%clk 0:01:42.6]} 25... Nb4 {[%clk 0:01:11.3]}
26. Rb1 {[%clk 0:01:22.3]} 26... Nd3 {[%clk 0:01:10.8]} 27. Bc3 {[%clk
0:01:20.4]} 27... Bb4 {[%clk 0:01:08.6]} 28. Ba1 {[%clk 0:01:12.8]} 28... Red8
{[%clk 0:00:59.6]} 29. Nc2 {[%clk 0:01:10.5]} 29... Ng4 {[%clk 0:00:54.5]} 30.
Qxd7 {[%clk 0:00:45.5]} 30... Rxd7 {[%clk 0:00:54.1]} 31. f3 {[%clk 0:00:44.7]}
31... exf3 {[%clk 0:00:44]} 32. Bxf3 {[%clk 0:00:45.6]} 32... Ngf2 {[%clk
0:00:43.9]} 33. Nxb4 {[%clk 0:00:40.4]} 33... axb4 {[%clk 0:00:31.1]} 34. Rd2
{[%clk 0:00:38.2]} 34... Ng4 {[%clk 0:00:24.9]} 35. Bxg4 {[%clk 0:00:29.3]}
35... hxg4 {[%clk 0:00:24.4]} 36. d5 {[%clk 0:00:29.5]} 36... Rxa4 {[%clk
0:00:20.1]} 37. Bd4 {[%clk 0:00:27.2]} 37... Ne5 {[%clk 0:00:19.8]} 38. Bxe5
{[%clk 0:00:21.7]} 38... Bxb1 {[%clk 0:00:19.4]} 39. Kf2 {[%clk 0:00:21.3]}
39... b3 {[%clk 0:00:19.7]} 40. Ne3 {[%clk 0:00:21.4]} 40... Ra2 {[%clk
0:00:19]} 41. Rb2 {[%clk 0:00:21.3]} 41... Rxb2+ {[%clk 0:00:18.7]} 42. Bxb2
{[%clk 0:00:21.3]} 42... f5 {[%clk 0:00:18.9]} 43. Ke2 {[%clk 0:00:20.4]} 43...
Kf7 {[%clk 0:00:19.2]} 44. Kd2 {[%clk 0:00:20.6]} 44... g6 {[%clk 0:00:19.1]}
45. Kc3 {[%clk 0:00:20.7]} 45... Be4 {[%clk 0:00:18.9]} 46. Kxb3 {[%clk
0:00:19.5]} 46... f4 {[%clk 0:00:16.8]} 47. Nxg4 {[%clk 0:00:18.8]} 47... f3
{[%clk 0:00:09.5]} 48. Bd4 {[%clk 0:00:16.9]} 48... Rd8 {[%clk 0:00:08.4]} 49.
Ne5+ {[%clk 0:00:12.3]} 49... Ke8 {[%clk 0:00:04]} 50. Kb4 {[%clk 0:00:11.2]}
50... Ra8 {[%clk 0:00:04.3]} 51. d6 {[%clk 0:00:11]} 51... Ra2 {[%clk
0:00:03.8]} 52. d7+ {[%clk 0:00:11]} 52... Ke7 {[%clk 0:00:03.8]} 53. Bc5+
{[%clk 0:00:11.3]} 1-0

[Event "*** Titled Tuesday Blitz"]
[Site "Chess.com"]
[Date "2020.04.21"]
[Round "3"]
[White "Tpros"]
[Black "Larisa004"]
[Result "1-0"]
[WhiteElo "2396"]
[BlackElo "2082"]
[TimeControl "180+1"]
[EndTime "10:29:33 PDT"]
[Termination "Tpros won on time"]

1. c4 {[%clk 0:03:00.9]} 1... Nf6 {[%clk 0:02:58.3]} 2. d3 {[%clk 0:03:00.5]}
2... c5 {[%clk 0:02:55.2]} 3. g3 {[%clk 0:02:59.7]} 3... e6 {[%clk 0:02:54.2]}
4. Bg2 {[%clk 0:03:00.6]} 4... Be7 {[%clk 0:02:52.6]} 5. Nc3 {[%clk 0:02:59.6]}
5... O-O {[%clk 0:02:52]} 6. Nf3 {[%clk 0:02:59.5]} 6... d6 {[%clk 0:02:51.6]}
7. O-O {[%clk 0:02:58.8]} 7... Nbd7 {[%clk 0:02:51.7]} 8. b3 {[%clk 0:02:57.7]}
8... Qc7 {[%clk 0:02:51.2]} 9. Bb2 {[%clk 0:02:57.4]} 9... a6 {[%clk 0:02:51]}
10. Rc1 {[%clk 0:02:57.1]} 10... Rb8 {[%clk 0:02:50.3]} 11. Re1 {[%clk
0:02:54.1]} 11... b6 {[%clk 0:02:44.8]} 12. e4 {[%clk 0:02:46.5]} 12... Bb7
{[%clk 0:02:43.1]} 13. h3 {[%clk 0:02:44.8]} 13... Rfe8 {[%clk 0:02:35.2]} 14.
Qc2 {[%clk 0:02:38.9]} 14... Ne5 {[%clk 0:02:29.3]} 15. Nh2 {[%clk 0:02:38.1]}
15... Nc6 {[%clk 0:02:28.6]} 16. Ne2 {[%clk 0:02:36.6]} 16... Nd7 {[%clk
0:02:23.6]} 17. f4 {[%clk 0:02:35.1]} 17... Bf6 {[%clk 0:02:09.2]} 18. Bxf6
{[%clk 0:02:27.3]} 18... Nxf6 {[%clk 0:02:10.1]} 19. g4 {[%clk 0:02:26.8]} 19...
e5 {[%clk 0:02:02.8]} 20. g5 {[%clk 0:02:21.4]} 20... Nd7 {[%clk 0:01:57.6]} 21.
f5 {[%clk 0:02:19.9]} 21... Nd4 {[%clk 0:01:57.6]} 22. Qd2 {[%clk 0:02:17.5]}
22... Qd8 {[%clk 0:01:45.1]} 23. Ng4 {[%clk 0:02:11.9]} 23... f6 {[%clk
0:01:30.6]} 24. h4 {[%clk 0:02:09.6]} 24... b5 {[%clk 0:01:27.2]} 25. Ng3 {[%clk
0:02:08.6]} 25... bxc4 {[%clk 0:00:57.1]} 26. dxc4 {[%clk 0:02:09.5]} 26... fxg5
{[%clk 0:00:54.7]} 27. hxg5 {[%clk 0:02:08.2]} 27... Rf8 {[%clk 0:00:54.2]} 28.
Nh5 {[%clk 0:02:07.3]} 28... g6 {[%clk 0:00:50.3]} 29. Nhf6+ {[%clk 0:02:06.8]}
29... Rxf6 {[%clk 0:00:49.9]} 30. Nxf6+ {[%clk 0:02:06.7]} 30... Nxf6 {[%clk
0:00:50]} 31. gxf6 {[%clk 0:02:06.7]} 31... Qxf6 {[%clk 0:00:50.9]} 32. Qh6
{[%clk 0:01:58.1]} 32... Rf8 {[%clk 0:00:49.7]} 33. Rc3 {[%clk 0:01:56.1]} 33...
gxf5 {[%clk 0:00:41.2]} 34. Rg3+ {[%clk 0:01:54.7]} 34... Kh8 {[%clk 0:00:41]}
35. Qxf6+ {[%clk 0:01:53.5]} 35... Rxf6 {[%clk 0:00:41]} 36. exf5 {[%clk
0:01:53.1]} 36... Bxg2 {[%clk 0:00:40.1]} 37. Kxg2 {[%clk 0:01:50.3]} 37... Nxf5
{[%clk 0:00:39.8]} 38. Rg4 {[%clk 0:01:40.6]} 38... Nd4 {[%clk 0:00:39.2]} 39.
Re3 {[%clk 0:01:34.6]} 39... Rg6 {[%clk 0:00:30.4]} 40. Reg3 {[%clk 0:01:27.2]}
40... Kg7 {[%clk 0:00:28.4]} 41. Kf2 {[%clk 0:01:22.4]} 41... Nf5 {[%clk
0:00:27.9]} 42. Rg1 {[%clk 0:01:19.6]} 42... Kf6 {[%clk 0:00:26.2]} 43. Kf3
{[%clk 0:01:16.5]} 43... Nd4+ {[%clk 0:00:25.3]} 44. Ke4 {[%clk 0:01:16.1]}
44... Rxg4+ {[%clk 0:00:24.6]} 45. Rxg4 {[%clk 0:01:15.4]} 45... h5 {[%clk
0:00:24.5]} 46. Rg8 {[%clk 0:01:10.5]} 46... h4 {[%clk 0:00:23.2]} 47. Rd8
{[%clk 0:00:58]} 47... Ke7 {[%clk 0:00:03.3]} 48. Rh8 {[%clk 0:00:55.7]} 48...
Nc2 {[%clk 0:00:02.8]} 49. Rxh4 {[%clk 0:00:50.9]} 49... Nb4 {[%clk 0:00:03.3]}
50. Rh2 {[%clk 0:00:36.5]} 50... Kd7 {[%clk 0:00:01.7]} 51. a3 {[%clk
0:00:35.7]} 51... Nc6 {[%clk 0:00:02.3]} 52. Rh7+ {[%clk 0:00:34.5]} 52... Ke6
{[%clk 0:00:01.5]} 53. Rb7 {[%clk 0:00:31.3]} 53... Nd4 {[%clk 0:00:01.5]} 54.
b4 {[%clk 0:00:28.3]} 54... cxb4 {[%clk 0:00:01.7]} 55. axb4 {[%clk 0:00:28.3]}
55... Nc6 {[%clk 0:00:02.3]} 56. Rb6 {[%clk 0:00:27.1]} 56... Nd4 {[%clk
0:00:02.4]} 57. c5 {[%clk 0:00:23.9]} 1-0